[Event "1000GM Saint Louis 2022"]
[Site "Saint Louis"]
[Date "2022.07.21"]
[Round "6.3"]
[White "Abrahamyan, Tatev"]
[Black "Dragun, Kamil"]
[Result "1-0"]
[ECO "B82"]
[WhiteElo "2291"]
[BlackElo "2563"]
[Annotator "TA"]
[PlyCount "81"]
[EventDate "2022.07.20"]
[EventType "tourn"]
[EventCountry "USA"]
[SourceTitle "playchess.com"]
[Source "ChessBase"]
[SourceQuality "1"]
[TimeControl "5400+30"]

{[%evp 15,81,20,63,34,48,39,41,18,33,-31,-37,-37,0,-18,-16,-14,-24,-18,-29,0,54,29,76,84,96,81,130,0,65,89,83,166,129,154,262,273,507,401,620,613,1121,1064,1062,1027,1240,1183,1449,830,1864,1766,2509,1079,1493,1020,1640,1881,1855,1922,1882,1882,1837,1661,1640,1543,1534,1448,2553,551]} 1. e4 {[%emt 0:40:56]} c5 {[%emt 0:00:13]} 2. Nf3 {[%emt 0:00:17]} e6 {[%emt 0:00:32]} 3. d4 {[%emt 0:00:07]} cxd4 {[%emt 0:00:05]} 4. Nxd4 {[%emt 0:00:02]} a6 {[%emt 0:00:05]} 5. Nc3 {[%emt 0:00:34]} Qc7 {[%emt 0:01:20]} 6. Bd3 {[%emt 0:01:40]} Nf6 {[%emt 0:00:55][%cal Bg8f6,Bf6d7,Bd7c5][%mdl 32]} 7. f4 {[%emt 0:01:16]} d6 {[%emt 0:01:04]} 8. Qf3 {[%emt 0:01:21]} Nbd7 {[%emt 0:01:51][%cal Bb8d7,Bd7c5,Bc5d3][%mdl 32]} 9. g4 {[%emt 0:07:19][%cal Bg2g4,Bg4g5][%mdl 32] White is more active. B82: Sicilian Scheveningen: 6 f4.} Nc5 {[%emt 0:13:38]} 10. g5 {[%emt 0:03:19]} Nfd7 {[%emt 0:02:02]} 11. Be3 {[%emt 0:00:29] White is slightly better.} b5 {[%emt 0:01:02]} 12. O-O-O {[%emt 0:08:13]} (12. a3 $14) 12... Nxd3+ {[%emt 0:06:50]} 13. Rxd3 {[%emt 0:00:09]} (13. cxd3 $2 b4 14. Kb1 bxc3 $19) 13... Nc5 {[%emt 0:00:05] [#]} (13... b4 $5 {[%cal Rd7c5]} 14. Nce2 Bb7 $15) 14. Rdd1 $146 {[%emt 0:03:26]} ({Predecessor:} 14. Rd2 b4 15. Nce2 Nxe4 16. Qxe4 Bb7 17. Nxe6 fxe6 18. Qxe6+ Qe7 19. Qxe7+ Bxe7 20. Re1 {1-0 (41) Englert,F (2282)-Andersen,S (2115) Helsingor 2013}) 14... b4 {[%emt 0:00:27]} 15. Nce2 {[%emt 0:00:17]} Bb7 {[%emt 0:06:06]} 16. Ng3 {[%emt 0:01:57]} Rc8 {[%emt 0:02:05][%cal Ob4b3] White must now prevent ...b3!} 17. Rd2 {[%emt 0:15:46]} a5 {[%emt 0:15:36]} (17... g6 $11) 18. Rhd1 {[%emt 0:15:57]} (18. Kb1 {looks sharper.} Na4 19. f5 e5 20. Nde2) 18... d5 {[%emt 0:07:12]} (18... Ba6 $11) 19. exd5 {[%emt 0:05:01] And now Qe2 would win.} Bxd5 {[%emt 0:00:40]} 20. Qe2 {[%emt 0:00:07] Hoping for Nb5.} Be7 {[%emt 0:10:50]} 21. f5 {[%emt 0:17:43]} (21. Nb5 $16 Qd7 22. f5) 21... O-O {[%emt 0:09:52]} (21... Bxa2 $11 22. Rf1 Qb7) 22. f6 $1 $14 {[%emt 0:02:42] White stays focused until the end.} Bd8 {[%emt 0:00:01]} 23. fxg7 {[%emt 0:01:34]} Re8 {[%emt 0:00:05] [#]} 24. Kb1 $36 {[%emt 0:04:10][%mdl 2048] Threatens to win with Rf1. Black is under strong pressure.} a4 {[%emt 0:00:32] [#]} (24... Nb7 $16 {might work better.} 25. Nh5 Be7) 25. Nb5 $1 $18 {[%emt 0:02:11] The board is on fire.} Qe7 {[%emt 0:08:55]} (25... Qd7 26. Rf1 Rb8) 26. Bf4 {[%emt 0:00:21] Nd6 is the strong threat.} b3 {[%emt 0:02:35]} (26... Qd7 $142 27. Nd6 Be7) 27. Nd6 {[%emt 0:01:39] White is clearly winning.} bxa2+ {[%emt 0:00:04]} 28. Ka1 {[%emt 0:00:03]} a3 {[%emt 0:00:04]} 29. b3 {[%emt 0:01:52]} (29. Nxc8 axb2+ 30. Kxb2 Na4+ 31. Ka1 Qb4 $18) 29... Qc7 {[%emt 0:08:07]} 30. Rxd5 {[%emt 0:02:38]} ({Inferior is} 30. Nxe8 Nxb3+ 31. cxb3 Qc3+ 32. Rb2 (32. Kxa2 $2 Bxb3+ 33. Kb1 Bxg5 $19) 32... Bf3 $17) 30... Na4 {[%emt 0:00:01]} 31. Qd2 {[%emt 0:01:39]} exd5 {[%emt 0:01:29]} 32. Nxe8 {[%emt 0:00:43] Pair of Knights!} Qc6 33. Nd6 {[%emt 0:01:08]} Ba5 {[%emt 0:00:09]} 34. Qxa5 {[%emt 0:01:01]} Qxc2 {[%emt 0:00:01]} 35. Qd2 {[%emt 0:00:06]} Qb2+ {[%emt 0:01:36]} 36. Qxb2 {[%emt 0:00:04]} axb2+ {[%emt 0:00:03]} 37. Kxa2 {[%emt 0:00:04]} Nc3+ {[%emt 0:00:03]} 38. Kxb2 {[%emt 0:00:10] White wants to mate with Ra1.} Nxd1+ {[%emt 0:00:02]} 39. Kb1 {[%emt 0:00:53]} Nc3+ {[%emt 0:00:01]} 40. Kc2 {[%emt 0:00:13]} Rc6 {[%emt 0:00:01]} 41. Ndf5 {[%emt 0:01:46] Weighted Error Value: White=0.25 (precise) /Black=0.45} (41. Ngf5 $142 Nb5+ 42. Kb2 Nxd6 43. Bxd6 Rxd6 44. Nxd6 Kxg7 45. Kc3) 1-0

[Event "1000GM Saint Louis 2022"]
[Site "Saint Louis"]
[Date "2022.07.21"]
[Round "6.4"]
[White "Eswaran, Ashritha"]
[Black "Gauri, Shankar"]
[Result "1-0"]
[ECO "C45"]
[WhiteElo "2394"]
[BlackElo "2376"]
[Annotator "TA"]
[PlyCount "41"]
[EventDate "2022.07.20"]
[EventType "tourn"]
[EventCountry "USA"]
[SourceTitle "playchess.com"]
[Source "ChessBase"]
[SourceQuality "1"]
[TimeControl "5400+30"]

{[%evp 14,41,-19,-26,-20,-23,-23,-30,-16,-63,-56,-72,-12,-16,-33,-40,30,31,23,25,25,25,25,29,41,35,35,34,609,598]} 1. e4 {[%emt 0:00:03]} e5 {[%emt 0:04:58]} 2. Nf3 {[%emt 0:00:12]} Nc6 {[%emt 0:00:16]} 3. d4 {[%emt 0:00:15]} exd4 {[%emt 0:00:31]} 4. Nxd4 {[%emt 0:00:17]} Nf6 {[%emt 0:01:38][%cal Bg8f6,Bf6d5,Bd5b6][%mdl 32]} 5. Nxc6 {[%emt 0:00:16]} bxc6 {[%emt 0:00:02]} 6. e5 {[%emt 0:00:20]} Qe7 {[%emt 0:00:47]} 7. Qe2 {[%emt 0:00:13]} Nd5 {[%emt 0:00:07]} 8. h4 {[%emt 0:00:08]} Qe6 {[%emt 0:02:07] C45: Scotch Game.} 9. Nd2 $1 {[%emt 0:01:10] 9.Nd2 is better than 9.g3.} a5 {[%emt 0:05:39]} 10. c4 {[%emt 0:01:56]} Nb6 {[%emt 0:01:57] Black has an edge.} 11. g3 {[%emt 0:00:56]} (11. h5 $11) 11... Bb4 $15 {[%emt 0:17:37] [#]} 12. h5 $146 {[%emt 0:04:16][%cal Bh4h5,Bh5h6][%mdl 32]} ({Predecessor:} 12. a3 Bxd2+ 13. Bxd2 Ba6 14. Rc1 O-O 15. Bh3 f5 16. exf6 Qxe2+ 17. Kxe2 Bxc4+ 18. Ke1 Rxf6 {0-1 (45) Jashari,A (2109)-Thorn,E (2292) Struga 2021}) 12... d6 {[%emt 0:06:10]} ({Black should try} 12... Ba6 $17 {And now ...Nxc4 would win.} 13. b3 Bc3) 13. exd6 {[%emt 0:10:18]} cxd6 {[%emt 0:05:55]} 14. h6 {[%emt 0:04:34]} g6 {[%emt 0:07:03]} ({Don't play} 14... gxh6 15. Rxh6 Qxe2+ 16. Bxe2 $16) (14... O-O $1 $15) 15. a3 $1 $11 {[%emt 0:03:31]} Bxd2+ {[%emt 0:06:32]} 16. Bxd2 {[%emt 0:03:27]} Nxc4 {[%emt 0:12:35]} 17. Bc3 {[%emt 0:02:11]} O-O {[%emt 0:01:49] [#] Threatens to win with ...Qd5.} 18. O-O-O $1 $36 {[%emt 0:01:09][%mdl 3072] White has compensation. White has good play.} Ba6 {[%emt 0:07:02]} 19. Qd3 {[%emt 0:03:26]} f6 {[%emt 0:06:06]} 20. Qd4 {[%emt 0:01:19]} Rad8 $2 {[%emt 0:04:23][%mdl 8192]} (20... Qf7 $14) 21. Qa7 {[%emt 0:00:35] Weighted Error Value: White=0.05 (flawless) /Black=0.68} 1-0

[Event "1000GM Saint Louis 2022"]
[Site "Saint Louis"]
[Date "2022.07.21"]
[Round "6.5"]
[White "Belous, Vladimir"]
[Black "Mardov, Dimitar"]
[Result "1-0"]
[ECO "A09"]
[WhiteElo "2519"]
[BlackElo "2396"]
[Annotator "TA"]
[PlyCount "87"]
[EventDate "2022.07.20"]
[EventType "tourn"]
[EventCountry "USA"]
[SourceTitle "playchess.com"]
[Source "ChessBase"]
[SourceQuality "1"]
[TimeControl "5400+30"]

{[%evp 9,87,0,11,0,0,0,23,22,13,16,55,39,53,49,54,37,41,33,81,81,98,62,76,52,110,84,96,69,157,145,142,115,142,90,158,72,77,77,112,108,137,136,135,129,127,135,164,21,40,23,33,18,36,30,97,9,7,0,0,0,84,100,86,107,157,138,264,194,345,309,309,309,277,264,29971,29973,29973,29974,6527,510]} 1. Nf3 {[%emt 0:01:41]} d5 {[%emt 0:00:06][%cal Bd7d5,Bd5d4][%mdl 32]} 2. c4 {[%emt 0:00:11]} d4 {[%emt 0:00:14]} 3. g3 {[%emt 0:00:12]} g6 {[%emt 0:01:52]} 4. Bg2 {[%emt 0:00:29]} Bg7 {[%emt 0:00:19]} 5. O-O {[%emt 0:00:08]} e5 {[%emt 0:01:49]} 6. e3 {[%emt 0:00:40] A09: Réti Opening: 1 Nf3 d5 2 c4.} Ne7 {[%emt 0:01:34]} 7. exd4 {[%emt 0:00:26]} exd4 {[%emt 0:04:09]} 8. d3 {[%emt 0:00:38] White has an edge.} O-O {[%emt 0:00:17]} 9. Re1 {[%emt 0:00:07]} c5 {[%emt 0:10:19]} 10. Nbd2 {[%emt 0:03:11]} Nbc6 {[%emt 0:02:59]} 11. Ne4 {[%emt 0:00:18]} b6 {[%emt 0:02:19]} 12. Bf4 {[%emt 0:00:19] [#]} h6 $146 {[%emt 0:10:48]} ({Predecessor:} 12... Bd7 13. Qd2 Bf5 14. Bh6 Qd7 15. Bxg7 Kxg7 16. Qf4 f6 17. h4 Rad8 18. a3 Rf7 {½-½ (64) De Wit,T (2268)-Manea,A (2390) Haarlem 2010}) 13. h4 {[%emt 0:02:04]} Be6 {[%emt 0:03:03]} (13... Nf5 $14 {is more appropriate.}) 14. Qd2 {[%emt 0:01:03]} Nf5 {[%emt 0:06:32]} 15. h5 {[%emt 0:11:34] hxg6 is the strong threat.} gxh5 {[%emt 0:07:40]} 16. Qd1 {[%emt 0:02:24]} Nfe7 {[%emt 0:06:19]} (16... Nce7 $14) 17. Nh4 {[%emt 0:04:35][%mdl 1024] White has strong compensation.} Bg4 {[%emt 0:03:38]} 18. Qd2 {[%emt 0:01:27]} Kh7 {[%emt 0:02:27]} (18... Ng6 $1 $14) 19. Nd6 $16 {[%emt 0:01:53][%cal Ob2b4]} Qd7 {[%emt 0:01:30] [#]} 20. Be4+ $1 {[%emt 0:01:35]} Kg8 {[%emt 0:14:20]} 21. Kh2 {[%emt 0:00:37]} (21. a3 $142) 21... Ng6 {[%emt 0:02:45] [#]} (21... Rad8 $142) 22. Nhf5 {[%emt 0:03:32]} (22. Nxg6 fxg6 23. Bd5+ Kh7 24. Bxc6 Qxc6 $11) ({White should play} 22. f3 $1 {[%cal Rf3g4]} Nxh4 23. gxh4 (23. fxg4 Be5 $16)) 22... Nce5 {[%emt 0:03:20]} 23. Bxa8 {[%emt 0:06:33] White is much more active. The black rooks are badly placed.} (23. Bxh6 Bxh6 24. Nxh6+ (24. Qxh6 $2 Bxf5 25. Bxf5 Qxd6 $19) 24... Kh7 $11) (23. Nxg7 Qxd6 24. Bxe5 (24. Bxa8 $2 Rxa8 25. Rxe5 Nxe5 $19) 24... Nxe5 $17) (23. Bxe5 {looks sharper.} Nxe5 24. Bxa8 Bxf5 25. Nxf5 Qxf5 26. Be4) 23... Rxa8 {[%emt 0:02:24]} 24. Bxe5 {[%emt 0:00:54]} Nxe5 {[%emt 0:02:31] [#]} 25. Rxe5 {[%emt 0:00:07][%mdl 512]} Bxe5 {[%emt 0:00:08] This bishop pair is nice.} 26. Nxh6+ {[%emt 0:00:08][%cal Bf5h6,Bh6f7,Bf7g5,Bg5e4][%mdl 32]} Kh7 {[%emt 0:01:24] [#]} 27. Nhxf7 {[%emt 0:00:35] Hoping for Qh6+.} Bg7 {[%emt 0:01:45] Inhibits Qh6+.} (27... Bxd6 28. Qh6+) 28. Qg5 {[%emt 0:04:43]} (28. f3 $18 Bf5 29. Ng5+ Kg6 30. Nxf5 Qxf5 31. f4) 28... Rf8 $11 {[%emt 0:01:05]} 29. Qd5 {[%emt 0:01:00] Strongly threatening Re1.} Qe7 {[%emt 0:03:59] Inhibits Re1.} 30. Ng5+ {[%emt 0:00:32]} Kg6 $1 {[%emt 0:00:09]} (30... Kh8 $2 31. Ndf7+ Rxf7 32. Nxf7+ $18) 31. Nde4 {[%emt 0:01:25]} Bf6 {[%emt 0:01:38]} (31... Bh6 $1 $11 {remains equal.} 32. f4 Bxg5 33. Nxg5 (33. fxg5 Qe6 $15) 33... Kg7) 32. Nxf6 {[%emt 0:00:44]} (32. Nh3 $16) 32... Rxf6 {[%emt 0:01:34]} 33. Ne4 {[%emt 0:00:21]} Rf3 {[%emt 0:01:40]} 34. b4 {[%emt 0:04:56][%cal Rb4c5]} h4 (34... Be6 $11 35. Qc6 cxb4) 35. bxc5 $16 {[%emt 0:00:33]} hxg3+ {[%emt 0:00:00]} 36. fxg3 {[%emt 0:01:39] Dancing on a razor blade.} bxc5 {[%emt 0:00:43]} (36... Rxd3 $142 37. cxb6 Bf3 38. Qc6+ (38. b7 Qh7+) 38... Kf5 39. g4+ (39. Qd5+ Kg6 $16) 39... Kf4 40. Qc7+ (40. b7 Qh4+ 41. Kg1 Qh1+ 42. Kf2 Qg2+ 43. Ke1 Qg1#) 40... Qxc7 41. bxc7 Bxg4) 37. Rb1 $36 {[%emt 0:01:23][%mdl 2048] aiming for Rb7. White is really pushing.} Rf7 {[%emt 0:01:29]} (37... Re3 $16 38. Qc6+ (38. Nxc5 {leads to mate.} Re2+) 38... Qe6 39. Qxc5 Re2+ 40. Kg1 Rxe4 41. dxe4 Qxe4 42. Qd6+ (42. Rf1 Qe3+ 43. Rf2 Qxg3+ 44. Rg2 Qe1+ 45. Kh2 Qh4+ 46. Kg1 Qe1+ 47. Kh2 Qh4+ 48. Kg1 Qe1+ $11) 42... Kg7 43. Rb7+ (43. Rf1 Qe3+ 44. Rf2 Qe1+ 45. Kg2 Bh3+ 46. Kxh3 Qxf2 $16) 43... Qxb7 44. Qxd4+ Kh7) 38. Rb8 {[%emt 0:00:44] Threatens to win with Rg8+.} Bf5 $2 {[%emt 0:00:00]} (38... Bf3 {keeps fighting.}) 39. Rh8 {[%emt 0:01:26]} Rh7+ {[%emt 0:00:00]} (39... Bxe4 $2 40. Qh5+ Kf6 41. dxe4 $18) 40. Rxh7 {[%emt 0:01:33]} Qxh7+ {[%emt 0:00:00]} 41. Kg1 {[%emt 0:00:07] White threatens Qd6+ and mate.} Qh5 $2 {[%emt 0:00:59]} (41... Qe7 $18 42. Qxc5 Qxc5 43. Nxc5 Kf6 44. Ne4+ Ke5) 42. Qg8+ {[%emt 0:01:00]} Kh6 {[%emt 0:00:07]} 43. Qf8+ {[%emt 0:00:04]} Kg6 {[%emt 0:00:18]} 44. Qf6+ {[%emt 0:00:00] Weighted Error Value: White=0.22 (precise) /Black=0.43} (44. Qe8+ $142 Kh6 45. Qh8+ Kg6 46. Qf6+ Kh7 47. Ng5+ Kg8 48. Qxf5 Qd1+ 49. Kf2 Qd2+ 50. Kf1 Qd1+ 51. Kf2 Qd2+ 52. Kf3 Qe3+ 53. Kg4 Qe2+ 54. Kh4 Qh2+ 55. Nh3) 1-0

[Event "1000GM Saint Louis 2022"]
[Site "Saint Louis"]
[Date "2022.07.22"]
[Round "7.1"]
[White "Mardov, Dimitar"]
[Black "Woodward, Andy"]
[Result "1-0"]
[ECO "B90"]
[WhiteElo "2396"]
[BlackElo "2486"]
[Annotator "TA"]
[PlyCount "217"]
[EventDate "2022.07.20"]
[EventType "tourn"]
[EventCountry "USA"]
[SourceTitle "playchess.com"]
[Source "ChessBase"]
[SourceQuality "1"]
[TimeControl "5400+30"]

{[%evp 12,217,3,0,70,59,45,30,37,29,43,0,0,0,0,0,9,2,18,0,10,7,2,6,9,-12,-15,-57,0,0,0,0,0,-22,137,127,186,176,216,144,177,146,345,349,346,317,409,391,408,393,450,172,172,172,207,207,207,207,207,172,172,166,167,0,172,172,172,0,172,197,186,172,172,0,218,230,218,218,170,155,254,247,247,248,247,247,255,255,286,127,274,282,261,231,221,195,395,380,341,312,493,518,455,391,503,496,557,553,532,520,502,497,435,18,16,25,48,0,428,405,661,631,631,560,1538,1467,1239,1118,982,995,745,520,1544,1473,2521,1590,12833,12827,2189,1020,12836,12834,12837,12837,12839,12839,12840,12837,12837,12838,12840,12839,12839,12840,12840,12839,12840,12840,12841,12841,12842,12843,12845,12842,12845,12844,12845,12843,12843,12843,12843,12843,12844,12843,12843,12842,12842,12839,12840,12839,12841,12841,12845,12843,12844,12843,12843,12843,12844,12844,12845,12845,12845,12846,12846,12845,12845,12845,12846,12847,12847,12847,12848,12848,12849,12849,12850,646]} 1. e4 {[%emt 0:00:04]} c5 {[%emt 0:00:07]} 2. Nf3 {[%emt 0:00:03]} d6 {[%emt 0:00:08]} 3. d4 {[%emt 0:00:03]} cxd4 {[%emt 0:00:06]} 4. Nxd4 {[%emt 0:00:05]} Nf6 {[%emt 0:00:05]} 5. Nc3 {[%emt 0:00:04]} a6 {[%emt 0:00:04]} 6. h3 {[%emt 0:00:10]} e5 {[%emt 0:00:27]} 7. Nb3 {[%emt 0:00:08]} h5 {[%emt 0:02:29] B90: Sicilian Najdorf: Unusual White 6th moves, 6 Be3 Ng4 and 6 Be3 e5.} (7... Be7 $11) 8. Be2 {[%emt 0:04:19] 8.f4 is becoming the main line.} Be6 {[%emt 0:04:01]} 9. O-O {[%emt 0:01:37]} Nbd7 {[%emt 0:02:49] [#] White has an edge.} 10. f4 $146 {[%emt 0:07:13]} ({Predecessor:} 10. a4 Rc8 11. Bg5 Be7 12. a5 g6 13. Re1 O-O 14. Bf3 Nh7 15. Be3 {½-½ (42) Solodovnichenko,Y (2561)-Olsen,F (2397) Skanderborg 2021}) 10... Rc8 {[%emt 0:05:51]} 11. Bf3 {[%emt 0:07:25]} Be7 {[%emt 0:03:53][%cal Of6g4]} 12. f5 {[%emt 0:06:05]} Bc4 {[%emt 0:03:14]} 13. Re1 {[%emt 0:01:14]} b5 {[%emt 0:02:28]} 14. a3 {[%emt 0:07:26]} a5 {[%emt 0:06:11]} 15. Nd2 {[%emt 0:04:04]} b4 {[%emt 0:01:26]} 16. Nxc4 {[%emt 0:03:12]} Rxc4 {[%emt 0:00:30]} 17. axb4 {[%emt 0:00:48]} axb4 {[%emt 0:00:10]} 18. Na4 {[%emt 0:08:53]} (18. Nd5 {feels hotter.} Nxd5 19. Qxd5 Rxc2 20. Ra8) 18... O-O {[%emt 0:09:39]} 19. b3 {[%emt 0:02:47]} Rc8 {[%emt 0:05:56]} (19... Rd4 $15 20. Qe2 d5) 20. Bd2 $11 {[%emt 0:09:13]} d5 {[%emt 0:04:34]} 21. exd5 {[%emt 0:01:58]} Bd6 {[%emt 0:00:38]} 22. c4 {[%emt 0:04:38]} Qe8 $2 {[%emt 0:05:15]} (22... bxc3 $1 $11 23. Nxc3 (23. Bxc3 Re8 $11) 23... Bc5+ 24. Kh1 Bf2) 23. Bf4 $36 {[%emt 0:03:56][%mdl 2048] Black is under strong pressure. White is more active.} (23. Bxh5 e4 24. Be2 Qe5 $11) 23... exf4 {[%emt 0:02:59]} 24. Rxe8 $18 {[%emt 0:00:07]} Rfxe8 {[%emt 0:00:04]} 25. Ra2 {[%emt 0:03:02]} Re3 {[%emt 0:01:09]} 26. Re2 {[%emt 0:02:32] aiming for Rxe3.} (26. Bxh5 Nxh5 27. Qxh5 Re1+ 28. Kh2 f3+ 29. g3 Re3 $15) 26... h4 $2 {[%emt 0:02:43]} (26... Rce8 $16 27. Rxe3 fxe3) 27. Rxe3 {[%emt 0:02:38]} fxe3 {[%emt 0:00:51] [#]} 28. Kf1 $1 {[%emt 0:01:27]} Nc5 {[%emt 0:10:37]} 29. Nxc5 {[%emt 0:00:17]} Bxc5 {[%emt 0:00:02]} 30. Qa1 {[%emt 0:01:45]} Ne8 {[%emt 0:00:14]} 31. Be4 $2 {[%emt 0:01:39]} (31. f6) 31... Nd6 {[%emt 0:03:15]} 32. Bd3 {[%emt 0:00:50] f6 is the strong threat.} Re8 {[%emt 0:00:32][%cal Oe3e2]} 33. Ke2 {[%emt 0:00:25] Strongly threatening f6.} f6 {[%emt 0:00:34]} 34. Qa5 {[%emt 0:00:52]} Rc8 {[%emt 0:00:07]} 35. Bc2 {[%emt 0:02:42]} Kh7 {[%emt 0:00:47]} 36. Qa4 {[%emt 0:00:30]} Rc7 {[%emt 0:01:55]} 37. Qa5 {[%emt 0:01:13]} Rc8 {[%emt 0:00:38]} 38. Qa1 {[%emt 0:00:45]} Kg8 {[%emt 0:00:19]} 39. Bd3 $2 {[%emt 0:03:32]} (39. Qa2 $18) 39... Rc7 $2 {[%emt 0:00:46]} (39... Re8 $11 40. Qa5 Rc8) 40. Qa8+ {[%emt 0:00:31]} Rc8 {[%emt 0:00:06]} 41. Qa6 {[%emt 0:00:39]} Rc7 {[%emt 0:00:45]} 42. Kf3 $2 {[%emt 0:00:57]} (42. Bb1 $18) 42... Kh7 $2 {[%emt 0:01:52]} (42... Re7 $11) 43. Qa5 {[%emt 0:00:59]} Rc8 {[%emt 0:00:11]} 44. g3 {[%emt 0:02:52]} hxg3 {[%emt 0:02:22]} 45. Kxg3 {[%emt 0:00:09]} Kh6 {[%emt 0:00:48]} (45... Re8 $16 {keeps fighting.}) 46. Kf3 {[%emt 0:00:17]} Kh7 {[%emt 0:00:49]} 47. h4 {[%emt 0:00:11][%cal Bh3h4,Bh4h5][%mdl 32]} Kh6 {[%emt 0:01:28]} 48. Ke2 {[%emt 0:00:44]} Kh7 {[%emt 0:00:57]} 49. h5 {[%emt 0:00:36]} Nf7 {[%emt 0:01:23]} 50. Qa1 {[%emt 0:01:18]} (50. Be4 $18 {has better winning chances.}) 50... Kh6 {[%emt 0:01:30]} (50... Rc7 $16 {is a better defense.} 51. Qa5 Rc8) 51. d6 {[%emt 0:01:02]} Bxd6 {[%emt 0:00:38]} 52. Qa7 {[%emt 0:00:47]} ({Don't do} 52. Kxe3 $6 Bc5+ 53. Kd2 Ne5 $18) 52... Rc7 {[%emt 0:00:57]} 53. Qxe3+ {[%emt 0:00:15]} Ng5 $2 {[%emt 0:00:01]} (53... Kh7) 54. Qb6 {[%emt 0:00:49]} Re7+ {[%emt 0:01:37]} 55. Kd1 {[%emt 0:00:17]} Bf4 {[%emt 0:00:50]} (55... Rd7 $142 56. Qd4 Rd8) 56. Qd8 {[%emt 0:02:22]} Re3 {[%emt 0:00:16]} 57. Qh8+ {[%emt 0:00:42]} Nh7 {[%emt 0:00:01]} 58. Kc2 {[%emt 0:00:35]} Rg3 {[%emt 0:00:23]} 59. Be4 {[%emt 0:00:44] Against Rg2+} Rc3+ {[%emt 0:00:17]} 60. Kd1 {[%emt 0:00:39]} Rxb3 {[%emt 0:00:40]} 61. Bd5 {[%emt 0:00:53]} Rd3+ {[%emt 0:04:30]} 62. Kc2 $2 {[%emt 0:00:27]} (62. Ke2 $18 Rg3 63. Bg8 Kxh5 64. Bxh7) 62... Rc3+ $11 {[%emt 0:00:08]} 63. Kb2 {[%emt 0:00:55] And now Bg8 would win. Chess con chili.} Be5 $1 {[%emt 0:01:23] Threatens to win with ...b3.} 64. Bg8 {[%emt 0:00:17]} (64. Kb1 $14 {feels stronger.} Ra3 65. Qe8) 64... Rg3+ $2 {[%emt 0:00:09][%mdl 8192] Black is now going downhill.} (64... Ra3+ $1 $11 65. Kc1 {[#]} b3 $1 66. Qxh7+ Kg5) 65. Kc1 {[%emt 0:00:40]} b3 {[%emt 0:02:00]} (65... Kxh5 $142 66. Qxh7+ Kg5) 66. Qxh7+ $18 {[%emt 0:00:11] White is clearly winning.} Kg5 {[%emt 0:00:01]} 67. Qxg7+ {[%emt 0:00:27]} Kxh5 {[%emt 0:00:11]} 68. Bf7+ {[%emt 0:00:41]} Kh4 {[%emt 0:00:46]} 69. Qh6+ {[%emt 0:00:33]} Kg4 {[%emt 0:00:07]} 70. Bh5+ {[%emt 0:00:52]} Kxf5 {[%emt 0:00:08]} 71. Qh7+ {[%emt 0:00:37]} Kf4 {[%emt 0:02:23]} (71... Ke6 $142 72. Be8 Kd6) 72. Bd1 {[%emt 0:00:46]} b2+ {[%emt 0:00:12]} 73. Kb1 {[%emt 0:00:18] Hoping for c5.} Ke3 {[%emt 0:02:01]} 74. c5 {[%emt 0:00:35]} Kd4 {[%emt 0:01:01]} 75. Kxb2 {[%emt 0:00:26]} Kxc5+ {[%emt 0:00:09]} 76. Kc2 {[%emt 0:00:34]} Kd4 {[%emt 0:00:08]} 77. Qd7+ {[%emt 0:00:31]} Ke4 {[%emt 0:00:10]} 78. Be2 {[%emt 0:00:18]} Kf4 {[%emt 0:01:23]} 79. Bd3 {[%emt 0:00:50]} Rg2+ {[%emt 0:00:33]} 80. Kb3 {[%emt 0:00:10]} Ke3 {[%emt 0:01:47]} 81. Kc4 {[%emt 0:00:24]} Rg3 {[%emt 0:00:56]} 82. Qa7+ {[%emt 0:00:47]} Kf3 {[%emt 0:00:09]} 83. Kd5 {[%emt 0:00:20]} Rg4 {[%emt 0:00:14]} 84. Ke6 {[%emt 0:00:36]} Rd4 {[%emt 0:00:09]} 85. Qa3 {[%emt 0:00:27]} Rd6+ {[%emt 0:00:33]} 86. Kf5 {[%emt 0:00:09]} Ke3 {[%emt 0:00:18]} 87. Bb1+ {[%emt 0:01:02]} Kd4 {[%emt 0:00:20]} 88. Qb4+ {[%emt 0:00:29]} Ke3 {[%emt 0:00:07]} 89. Be4 {[%emt 0:00:49]} Rd2 {[%emt 0:00:37]} 90. Qc5+ {[%emt 0:00:37]} Rd4 {[%emt 0:00:13]} 91. Qc3+ {[%emt 0:00:23]} Ke2 {[%emt 0:00:07]} 92. Qc1 {[%emt 0:01:10]} Kf2 {[%emt 0:00:15]} 93. Qc2+ {[%emt 0:00:19]} Ke3 {[%emt 0:00:07]} 94. Qg2 {[%emt 0:00:10]} Rd2 {[%emt 0:00:13]} 95. Qf3+ {[%emt 0:01:08]} Kd4 {[%emt 0:00:05]} 96. Ke6 {[%emt 0:00:15]} Kc5 {[%emt 0:00:50]} 97. Bd3 {[%emt 0:00:24]} Rb2 {[%emt 0:01:10]} 98. Qd5+ {[%emt 0:00:26]} Kb4 {[%emt 0:00:07]} 99. Qc4+ {[%emt 0:00:25]} Ka3 {[%emt 0:00:06]} 100. Qc5+ {[%emt 0:00:49]} Kb3 {[%emt 0:00:26]} 101. Kd5 {[%emt 0:00:33]} Rh2 {[%emt 0:00:25]} 102. Qc4+ {[%emt 0:00:25]} Ka3 {[%emt 0:00:32]} 103. Qb5 {[%emt 0:00:39]} Rb2 {[%emt 0:01:12]} 104. Qa5+ {[%emt 0:00:36]} Kb3 {[%emt 0:00:01]} 105. Kc5 {[%emt 0:00:22] White wants to mate with Qb4+.} Rh2 {[%emt 0:02:06]} 106. Qb4+ {[%emt 0:00:09]} Ka2 {[%emt 0:00:04]} 107. Bc4+ {[%emt 0:00:07]} Ka1 {[%emt 0:00:04]} 108. Qa3+ {[%emt 0:00:05]} Kb1 {[%emt 0:00:04]} 109. Bd3+ {[%emt 0:00:06] Weighted Error Value: White=0.24 (precise) /Black=0.45} 1-0